Cogmind - Beta 17 @@@ ROGUE MODE // 2026.07.14 @ 18:49:28 Player: Blaf Result: Destroyed by Autobeam Turret with Autobeam Performance ------------- Evolutions (0) 0 Regions Visited (2) 400 Robots Destroyed (22) 110 Value Destroyed (290) 290 Prototype IDs (0) 0 Alien Tech Used (0) 0 Bonus (0) 0 TOTAL SCORE: 800 Bonus ------- None Cogmind --------- Core Integrity 0/250 Matter 249/300 Energy 88/100 System Corruption 0% Temperature Cool (6) Movement Core (150) Ox2 Location -10/Subcaves Parts ------- > --- POWER (1) -------- (None) > --- PROPULSION (2) --- (None) > --- UTILITY (2) ------ Small Storage Unit ECM Suite > --- WEAPON (2) ------- (None) > --- INVENTORY (8) ---- Light Ion Engine Small Storage Unit Peak State ------------ > --- POWER ------------ Ion Engine > --- PROPULSION ------- Compact Wheel Compact Wheel > --- UTILITY ---------- Small Storage Unit ECM Suite > --- WEAPON ----------- Assault Rifle Grenade Launcher > --- INVENTORY -------- Light Ion Engine Small Storage Unit Grenade Launcher [Rating: 7] Favorites ----------- Power Ion Engine Engine Ion Engine Propulsion Compact Wheel Wheel Compact Wheel Utility Small Storage Unit Device ECM Suite Storage Small Storage Unit Weapon Assault Rifle Energy Gun EM Pulse Gun Ballistic Gun Assault Rifle Launcher Grenade Launcher Build | -11 -10 -10 ------- Run | Yrd Mat Sub Slots Evolved . | . . . Power . | . . . Propulsion . | . . . Utility . | . . . Weapon . | . . . Parts Attached 9 | 6 2 1 Power 1 | 1 . . Engine 1 | 1 . . Core . | . . . Reactor . | . . . Propulsion 2 | 2 . . Treads . | . . . Leg . | . . . Wheel 2 | 2 . . Hover . | . . . Flight . | . . . Utility 2 | 1 1 . Device 1 | . 1 . Storage 1 | 1 . . Processor . | . . . Hackware . | . . . Protection . | . . . Artifact . | . . . Weapon 4 | 2 1 1 Energy Gun 1 | 1 . . Energy Cannon . | . . . Ballistic Gun 1 | 1 . . Ballistic Cannon . | . . . Launcher 2 | . 1 1 Special Weapon . | . . . Impact Weapon . | . . . Slashing Weapon . | . . . Piercing Weapon . | . . . Special Melee Weapon . | . . . Unidentified Prototypes . | . . . Parts Lost 6 | . . 6 Power 1 | . . 1 Propulsion 2 | . . 2 Utility . | . . . Weapon 3 | . . 3 Highest Loss Streak 6 | . . 6 To Critical Strikes . | . . . Average Backups 1 | . 2 2 Power . | . 1 1 Propulsion . | . . . Utility . | . . 1 Weapon . | . . . Tool/Special . | . . . Unused Backups 3 | 1 . 2 Power 1 | . . 1 Propulsion 1 | 1 . . Utility 1 | . . 1 Weapon . | . . . Tool/Special . | . . . Average Slot Usage (%) 92 | . 88 97 Engine 13 | . 14 13 Wheel 27 | . 28 27 Device 8 | . 3 14 Storage 14 | . 14 14 Energy Gun 3 | . 7 . Ballistic Gun 13 | . 14 12 Launcher 10 | . 7 14 Peak Build Rating 7 | 6 7 7 Average Rating 6 | 5 6 6 On Entrance 4 | . 6 7 Avg Prop Armor Cover (%) . | . . . Naked Turns . | . . . Heaviest Build 18 | 14 17 18 Greatest Support 32 | 32 32 32 Greatest Overweight (x) 2 | . . 2 Average Overweight (x) . | . . . Largest Inventory Capacity 8 | 8 8 8 Average Capacity 7 | 7 8 8 Most Carried 5 | 2 5 3 Average Carried 1 | . 2 2 Final Capacity 8 | 8 8 8 Final Carried 3 | 1 3 2 Class Distribution -------------------- 100% | Mutant Dominant Class ---------------- Mutant | -10/Materials Mutant | -10/Subcaves Resources | -11 -10 -10 ----------- Run | Yrd Mat Sub Matter Collected 437 | 326 27 84 Remotely . | . . . Salvage Created 523 | 402 48 73 Parts 50 | 37 3 10 Haulers Intercepted . | . . . Recyclers Shooed 1 | 1 . . Parts Field Recycled . | . . . Retrieved Matter . | . . . Parts Self-Destructed 5 | . . 5 Prevented . | . . . Parts Restored . | . . . Kills | -11 -10 -10 ------- Run | Yrd Mat Sub Combat Hostiles Destroyed 8 | . 2 6 AOE 8 | . 2 6 Classes Destroyed 6 | 3 1 2 Worker 4 | 4 . . Tunneler 9 | 9 . . Recycler 1 | 1 . . Swarmer 4 | . . 4 Grunt 3 | . 2 1 Sentry 1 | . . 1 Best Kill Streak 6 | 6 2 4 Combat Bots Only 4 | . 2 4 Max Kills in Single Turn 3 | 1 1 3 Gunslinging . | . . . Exploded 3 | . 1 3 Melee . | . . . Uniques/NPCs Destroyed . | . . . Combat | -11 -10 -10 -------- Run | Yrd Mat Sub Hostile Shots Fired 125 | . 10 115 Missed 44 | . 3 41 Hits 81 | . 7 74 Projectile 81 | . 7 74 Critical Strikes 1 | . . 1 Damage Taken 675 | . 79 596 Core 252 | . 11 241 Absorbed by Shields . | . . . Core Remaining (%) 100 | 100 . . Volleys Fired 34 | 22 5 7 Largest 2 | 2 2 2 Hottest 60 | 60 50 60 Shots Fired 65 | 44 10 11 Gun 51 | 44 5 2 Cannon . | . . . Launcher 14 | . 5 9 Special . | . . . Kinetic 29 | 22 5 2 Thermal . | . . . Explosive 14 | . 5 9 Electromagnetic 22 | 22 . . Robot Hit Streak 5 | 5 5 3 Robot Miss Streak 3 | 3 1 1 Penetration Max . | . . . Secondary Targets . | . . . Shots Hit Robots 32 | 24 5 3 Core Hits 28 | 15 4 9 Critical Kills . | . . . Critical Parts Destroyed . | . . . Critical Strikes . | . . . Melee Attacks . | . . . Impact . | . . . Slashing . | . . . Piercing . | . . . Sneak Attacks . | . . . Combat Hostiles . | . . . Follow-up Attacks . | . . . Damage Inflicted 876 | 304 159 413 Guns 364 | 304 36 24 Cannons . | . . . Explosions 512 | . 123 389 Melee . | . . . Ramming . | . . . Kinetic 203 | 143 36 24 Thermal . | . . . Explosive 512 | . 123 389 Electromagnetic 161 | 161 . . Impact . | . . . Slashing . | . . . Piercing . | . . . Highest Corruption . | . . . Average Corruption . | . . . Corruption Purged . | . . . Corruption Blocked . | . . . Overload Shots . | . . . Overflow Damage 10 | . . 10 Projectiles . | . . . Explosions 10 | . . 10 Melee . | . . . Knockbacks . | . . . Impact . | . . . Kinetic . | . . . Secondary . | . . . Self-Inflicted Damage . | . . . Shots . | . . . Rammed 2 | . . 2 Targets Rammed 2 | . . 2 Kicked . | . . . Crushed . | . . . Highest Temperature 22 | . 22 10 Average Temperature 13 | . 14 6 Received Heat Transfer 459 | . 42 417 Siege Activations . | . . . Martial Activations . | . . . Shielding Activations . | . . . Robots Disrupted . | . . . Combat Hostiles . | . . . Robots Corrupted . | . . . Combat Hostiles . | . . . Parts Fried 1 | 1 . . Impact Corruptions . | . . . Robots Melted . | . . . Combat Hostiles . | . . . Parts Melted . | . . . Heat Transferred . | . . . Parts Sabotaged . | . . . Parts Stolen . | . . . Parts Stripped . | . . . Power Chain Reactions . | . . . Alert | -11 -10 -10 ------- Run | Yrd Mat Sub Maximum Alert Level . | . . . Low Security (%) 100 | 100 100 . Level 1 . | . . . Level 2 . | . . . Level 3 . | . . . Level 4 . | . . . Level 5 . | . . . High Security . | . . . Max Security . | . . . Peak Influence 109 | 10 109 . Initial . | . . . Average 13 | 1 34 . Influence Increases 339 | 70 149 120 Destroy 0b10 Robot/C 160 | . 40 120 Destroy 0b10 Robot/NC 70 | 70 . . Destroy Leader 10 | . 10 . Disable Machine 45 | . 45 . Destroy Structure 24 | . 24 . Lose Combat Pursuer 30 | . 30 . Influence Decreases 329 | 70 80 179 Entered New Map 34 | . . 34 Time Decay 245 | 70 80 95 Lost Part 50 | . . 50 Squads Dispatched 1 | . 1 . Investigation . | . . . Extermination . | . . . Reinforcement 1 | . 1 . Assault . | . . . Garrison . | . . . Intercept . | . . . Searches Triggered . | . . . Construction Impeded . | . . . Haulers Reinforced . | . . . Active Scanning Responses . | . . . Cargo Convoy Interrupts . | . . . Stealth | -11 -10 -10 --------- Run | Yrd Mat Sub Distress Signals . | . . . Communications Jammed . | . . . Distress Signals . | . . . Times Spotted 55 | . 6 49 Peak Tracking Total 6 | . 3 6 Tactical Retreats 5 | . 2 3 ECM-based Alert Blocks 70 | . . 70 Traps | -11 -10 -10 ------- Run | Yrd Mat Sub Traps Triggered 2 | . . 2 Indirectly . | . . . Trap Hack Attempts . | . . . Triggered . | . . . Disarmed . | . . . Reprogrammed . | . . . Reused . | . . . Traps Extracted . | . . . Installed . | . . . Triggered . | . . . Machines | -11 -10 -10 ---------- Run | Yrd Mat Sub Machines Disabled 6 | . 3 3 Max in Single Turn 2 | . 1 2 Machines Repaired . | . . . Machines Dismantled . | . . . Machines Sabotaged . | . . . Overloaded Fab Kills . | . . . Hacking | -11 -10 -10 --------- Run | Yrd Mat Sub Machines Accessed . | . . . Terminals . | . . . Fabricators . | . . . Repair Stations . | . . . Recycling Units . | . . . Scanalyzers . | . . . Garrison Access . | . . . Total Hacks . | . . . Successful . | . . . Failed . | . . . Catastrophic . | . . . Database Lockouts . | . . . Manual 1 | . 1 . Terminals . | . . . Fabricators . | . . . Repair Stations . | . . . Recycling Units . | . . . Scanalyzers . | . . . Garrison Access . | . . . Terminal Hacks . | . . . Fabricator Hacks . | . . . Repair Station Hacks . | . . . Recycling Unit Hacks . | . . . Scanalyzer . | . . . Garrison Access Hacks . | . . . Unauthorized Hacks . | . . . Terminals . | . . . Fabricators . | . . . Repair Stations . | . . . Recycling Units . | . . . Scanalyzers . | . . . Garrison Access . | . . . Data Cores Recovered . | . . . Used . | . . . Hacking Detections . | . . . Full Trace Events . | . . . Feedback Events . | . . . Feedback Blocked . | . . . Robot Schematics Acquired . | . . . Robots Built . | . . . Authchips . | . . . Time . | . . . Total Robot Build Rating . | . . . Part Schematics Acquired . | . . . Parts Built . | . . . Authchips . | . . . Time . | . . . Total Part Build Rating . | . . . Part Studies Acquired . | . . . Parts Repaired . | . . . Time . | . . . Parts Recycled . | . . . Recycled Matter . | . . . Retrieved Matter . | . . . Retrieved Components . | . . . Parts Scanalyzed . | . . . Part Schematics Acquired . | . . . Parts Damaged . | . . . Bothacking | -11 -10 -10 ------------ Run | Yrd Mat Sub Used RIF Installer . | . . . Robots Hacked . | . . . Non-combat . | . . . Combat . | . . . Robot Hacks Applied . | . . . Relay Couplers Released . | . . . Fabnet Peak Effective % . | . . . Robots Rewired . | . . . Allies Hacked . | . . . Hacks Repelled . | . . . Allies | -11 -10 -10 -------- Run | Yrd Mat Sub Total Allies . | . . . Largest Group . | . . . Highest-Rated Group . | . . . Highest-Rated Ally . | . . . Total Orders . | . . . Ally Attacks . | . . . Total Damage . | . . . Kills . | . . . Allies Corrupted . | . . . Allies Melted . | . . . Intel | -11 -10 -10 ------- Run | Yrd Mat Sub Active Infowar (turns) 344 | . 64 280 ECM 344 | . 64 280 Robot Analysis Total . | . . . Derelict Logs Recovered . | . . . Drone Launches . | . . . Drone Recoveries . | . . . Exploration | -11 -10 -10 ------------- Run | Yrd Mat Sub Turns Passed 1007 | 471 256 280 Spaces Moved 885 | 397 235 253 Core 12 | 6 . 6 Treads . | . . . Legs . | . . . Wheels 873 | 391 235 247 Hover . | . . . Flight . | . . . Fastest Speed 50 | 50 100 100 Average Speed 100 | 99 100 101 Slowest Speed 150 | 100 100 150 Overloaded Moves . | . . . Propulsion Burnouts . | . . . Robots Hopped . | . . . Potential Cave-ins . | . . . Cave-ins Triggered . | . . . Exploration Rate (%) 17 | 6 34 13 Regions Visited 2 Branch Regions 1 Pre-discovered Areas 1 | . . 1 Known Exits Taken . | . . . Unknown Exits Taken 2 | 1 1 . Scrap Searched . | . . . Spaces Dug . | . . . Terrain Destroyed 63 | . 24 39 Melee . | . . . Projectile . | . . . AOE 63 | . 24 39 Terrain Rammed . | . . . Walls Destroyed . | . . . Machines Disabled . | . . . Actions | -11 -10 -10 --------- Run | Yrd Mat Sub Total 936 | 427 246 263 Wait . | . . . Move 883 | 396 234 253 Hop . | . . . Pick Up 5 | 2 3 . Fast Attach 7 | 6 1 . Attach 2 | . 1 1 Detach 1 | . 1 . Swap . | . . . Drop 2 | 1 1 . Fire 34 | 22 5 7 Melee . | . . . Ram 2 | . . 2 Kick . | . . . Crush . | . . . Escape Stasis . | . . . Rewire . | . . . Trap . | . . . Miscellaneous . | . . . Route ------- -11/Scrapyard -10/Materials (discovered 2 exits: [*Mat] / [*Sub]) -10/Subcaves (discovered 2 exits: [*Mat] / [*Rec]) History --------- Turn | Location | Event 12 | -11/Scrapyard | Discovered new exit (range 15) 472 | -11/Scrapyard | Entered Materials 473 | -10/Materials | Build established: Mutant 629 | -10/Materials | Discovered new exit (range 9) 707 | -10/Materials | Discovered new exit (range 9) 728 | -10/Materials | Entered Subcaves 730 | -10/Subcaves | Learned location of Zion (-6) 730 | -10/Subcaves | Met a Zionite searching for "candidates" 745 | -10/Subcaves | Shifting Twisted Machinery released Piercing Trap 747 | -10/Subcaves | Shifting Twisted Machinery released Sub. Optics 798 | -10/Subcaves | Discovered new exit (range 10) 984 | -10/Subcaves | Discovered new exit (range 16) 999 | -10/Subcaves | Core integrity fell below 50% 1005 | -10/Subcaves | Core integrity fell below 20% 1008 | -10/Subcaves | Destroyed by Autobeam Turret with Autobeam Last Messages --------------- 00973_ Assault Rifle destroyed. 00975_ Destroyed Lgt. Ion Engine. 00975_ S-10 Pest destroyed. 00978_ The unstable cave ceiling collapses. 00978_ S-10 Pest destroyed. 00978_ Machine disabled. 00979_ Lgt. Ion Engine fries itself beyond repair. 00979_ Lgt. Assault Rifle fries itself beyond repair. 00984_ Grenade Launcher destroyed. 00984_ EXIT=FOUND 00986_ The unstable cave ceiling collapses. 00986_ Machine disabled. 00988_ The unstable cave ceiling collapses. 00990_ Ion Engine destroyed. 00992_ Grenade Launcher destroyed. 00994_ Com. Wheel destroyed. 00999_ The unstable cave ceiling collapses. 01005_ Slammed into Autobeam Turret. Map ----- +----------------------------------------------------+ | ?????????????????????? ##?# #?##?" | | ??????????????????????? ### ##"#"# | | ???????????????####??? #????# """" | | ??????????????## #### #?????# ### """" | | ??????????????# #??###### #### ##"### | | ??????????????# ###### #### ### # #?##?? | | ??????????????## # #### ### ###"## | | ???????????????# ## """ | | ??????????????## # ### # ## ##### " &## | | ??????????????# #####?##### ## #####????#####? | | ??????????????## ##????????#########?????????????? | | ???????????????# ##?????????????????????????????? | | ???????####?#### ##????????????????????????????? | | ???????# ### ## < #????????????????????????????? | | ???????# # #????????????????????????????? | | ???##### ## ##????????????????????????????? | | #### ##?????????????????????????????? | | # ###??????????????????????????????? | | ##????????????????????????????????? | | ###??????########???????????????????? | | # #####???######" """#???????????????????? | | ## ##??#### "#???????????????????? | | ?# ## #### # "#???????????????????? | | ### ## t "##??????????????????? | | # #?## <#??????????????????? | | # #??# @t "#???????????????????? | | ##??## # "#???????????????????? | | #???## "#???????????????????? | | ##????## """#???????????????????? | | #?????### ##########???????????????????? | | ### #?# ##????????????????????????????? | | ????? #?????????????????????????????? | | ??????? #?????????????????????????????? | | ??????? ##### #?????????????????????????????? | | ?????? ##????# ##?????????????????????????????? | | ?????? #??????###??????????????????????????????? | | ?????? ????????????????????????????????????????? | | ??????? ?????????????????????????????????????????? | | ?????????????????????????????????????????????????? | | ?????????????????????????????????????????????????? | | ?????????????????????????????????????????????????? | | ?????????????????????????????????????????????????? | | ?????????????????????????????????????????????????? | | ?????????????????????????????????????????????????? | | ?????????????????????????????????????????????????? | | ?????????????????????????????????????????????????? | | ?????????????????????????????????????????????????? | | ?????????????????????????????????????????????????? | | ?????????????????????????????????????????????????? | | ?????????????????????????????????????????????????? | +----------------------------------------------------+ Best States ------------- Heat Dissipation 25 Energy Generation 10 Energy Capacity 250 Matter Stores 300 Matter Capacity 300 Sight Range 16 Terrain Scan Density 10 ECM Strength 1 Evasion (%) 40 Item Schematics ----------------- None Robot Schematics ------------------ None Fabricated ------------ Nothing Repaired ---------- Nothing Studied --------- None Alien Tech Used ----------------- None Achievements -------------- None Challenges ------------ None Game ------ Seed WarpPiercelightPod Manual? 0 Play Time 00:11:04 Cumulative 16.9 hours Start 2026.07.14 @ 18:37:33 End 2026.07.14 @ 18:49:28 Sessions 1 Manual Loads 0 Difficulty Rogue Special Mode None Game No. 30 Rogue 30 Adventurer 0 Explorer 0 Win Type - Total 0 Types 0/0/0/0/0/0/0/0/0/0 Lore% 7 Gallery% 15 Achievement% 13 Wizard Run 0 Options --------- Layout 1 ASCII 0 Keyboard 0 Movement Arrows Keybinds 0 Fullscreen 1 Font 24/Smallcaps Map View 50x35 Zoom Use 0% Tactical HUD 1 Map Filters NONE Filters NONE Steam 1 RUN: f8494a6b-23e2-414f-a29e-a3a4b5b156f8